[Event "11th LCC Super Blitz 2019"]
[Site "London"]
[Date "2019.12.08"]
[Round "5.1"]
[White "Maze, Sebastien"]
[Black "Jones, Gawain C B"]
[Result "1/2-1/2"]
[ECO "C77"]
[WhiteElo "2549"]
[BlackElo "2683"]
[Annotator "ChessBase"]
[PlyCount "105"]
[EventDate "2019.12.08"]
[EventType "swiss"]
[EventCountry "ENG"]
[SourceTitle "playchess.com"]
[Source "ChessBase"]
[SourceQuality "1"]
[TimeControl "180+2"]

1. e4 {[%emt 0:00:02]} e5 {[%emt 0:00:01]} 2. Nf3 {[%emt 0:00:01]} Nc6 {[%emt 0:00:01]} 3. Bb5 {[%emt 0:00:03]} a6 {[%emt 0:00:02]} 4. Ba4 {[%emt 0:00:01]} Nf6 {[%emt 0:00:01]} 5. Nc3 {[%emt 0:00:01]} Bc5 {[%emt 0:00:19]} 6. Bxc6 {[%emt 0:00:03]} dxc6 {[%emt 0:00:01]} 7. d3 {[%emt 0:00:01]} Qe7 {[%emt 0:00:05]} 8. Be3 {[%emt 0:00:07]} Bg4 {[%emt 0:00:08]} 9. h3 {[%emt 0:00:01]} Bxf3 {[%emt 0:00:05]} 10. Qxf3 {[%emt 0:00:02]} Nd7 {[%emt 0:00:02]} 11. O-O {[%emt 0:00:28]} O-O-O {[%emt 0:00:05]} 12. Bxc5 {[%emt 0:00:03]} Nxc5 {[%emt 0:00:01]} 13. Qe3 {[%emt 0:00:01]} Ne6 {[%emt 0:00:07]} 14. Ne2 {[%emt 0:00:02]} g5 {[%emt 0:00:07]} 15. Ng3 {[%emt 0:00:20]} Nd4 {[%emt 0:00:12]} 16. Rac1 {[%emt 0:00:10]} Kb8 {[%emt 0:00:04]} 17. c3 {[%emt 0:00:02]} Ne6 {[%emt 0:00:01]} 18. Nf5 {[%emt 0:00:03]} Qf6 {[%emt 0:00:04]} 19. a4 {[%emt 0:00:14]} Rd7 {[%emt 0:00:06]} 20. g3 {[%emt 0:00:08]} h5 {[%emt 0:00:02]} 21. b4 {[%emt 0:00:05]} h4 {[%emt 0:00:02]} 22. Kg2 {[%emt 0:00:04]} Qd8 {[%emt 0:00:16]} 23. Rfd1 {[%emt 0:00:14]} g4 {[%emt 0:00:08]} 24. hxg4 {[%emt 0:00:09]} hxg3 {[%emt 0:00:01]} 25. fxg3 {[%emt 0:00:02]} Qg8 {[%emt 0:00:03]} 26. Rh1 {[%emt 0:00:07]} Rxh1 {[%emt 0:00:09]} 27. Rxh1 {[%emt 0:00:01]} b6 {[%emt 0:00:06]} 28. Nh6 {[%emt 0:00:35]} Qd8 {[%emt 0:00:02]} 29. Rd1 {[%emt 0:00:03]} f6 {[%emt 0:00:04]} 30. Nf5 {[%emt 0:00:03]} Qg8 {[%emt 0:00:02]} 31. Qf3 {[%emt 0:00:18]} Ng5 {[%emt 0:00:04]} 32. Qe2 {[%emt 0:00:08]} Qb3 {[%emt 0:00:04]} 33. a5 {[%emt 0:00:10]} b5 {[%emt 0:00:09]} 34. Rc1 {[%emt 0:00:03]} Qa3 {[%emt 0:00:06]} 35. Qc2 {[%emt 0:00:07]} c5 {[%emt 0:00:13]} 36. bxc5 {[%emt 0:00:04]} Qxc5 {[%emt 0:00:05]} 37. c4 {[%emt 0:00:01]} b4 {[%emt 0:00:04]} 38. Rb1 {[%emt 0:00:01]} Qxa5 {[%emt 0:00:03]} 39. Qb3 {[%emt 0:00:03]} c5 {[%emt 0:00:02]} 40. Rh1 {[%emt 0:00:01]} Kc7 {[%emt 0:00:13]} 41. Ne3 {[%emt 0:00:04]} Rh7 {[%emt 0:00:12]} 42. Rxh7+ {[%emt 0:00:01]} Nxh7 {[%emt 0:00:01]} 43. Nd5+ {[%emt 0:00:01]} Kd6 {[%emt 0:00:04]} 44. Qd1 {[%emt 0:00:01]} Qa2+ {[%emt 0:00:03]} 45. Kg1 {[%emt 0:00:02]} Ng5 {[%emt 0:00:02]} 46. Qf1 {[%emt 0:00:00]} Nh7 {[%emt 0:00:11]} 47. Qf5 {[%emt 0:00:03]} Qb1+ {[%emt 0:00:01]} 48. Kg2 {[%emt 0:00:01]} Qc2+ {[%emt 0:00:02]} 49. Kg1 {[%emt 0:00:01]} Qd1+ {[%emt 0:00:04]} 50. Kg2 {[%emt 0:00:01]} Qd2+ {[%emt 0:00:10]} 51. Kg1 {[%emt 0:00:00]} Qc1+ {[%emt 0:00:14]} 52. Kg2 {[%emt 0:00:01]} Qd2+ {[%emt 0:00:05]} 53. Kg1 {[%emt 0:00:04]} 1/2-1/2

[Event "11th LCC Super Blitz 2019"]
[Site "London"]
[Date "2019.12.08"]
[Round "5.1"]
[White "Grover, Sahaj"]
[Black "Aravindh, Chithambaram Vr"]
[Result "1-0"]
[ECO "D37"]
[WhiteElo "2486"]
[BlackElo "2560"]
[Annotator "ChessBase"]
[PlyCount "57"]
[EventDate "2019.12.08"]
[EventType "swiss"]
[EventCountry "ENG"]
[SourceTitle "playchess.com"]
[Source "ChessBase"]
[SourceQuality "1"]
[TimeControl "180+2"]

1. d4 {[%emt 0:00:00]} Nf6 {[%emt 0:00:00]} 2. c4 {[%emt 0:00:00]} e6 {[%emt 0:00:01]} 3. Nc3 {[%emt 0:00:00]} d5 {[%emt 0:00:02]} 4. Nf3 {[%emt 0:00:11]} a6 {[%emt 0:00:02]} 5. cxd5 {[%emt 0:00:26]} exd5 {[%emt 0:00:01]} 6. Bg5 {[%emt 0:00:05]} Be6 {[%emt 0:00:02]} 7. Qb3 {[%emt 0:00:10]} Nbd7 {[%emt 0:00:04]} 8. e3 {[%emt 0:00:12]} b5 {[%emt 0:00:13]} 9. Ne5 {[%emt 0:00:10]} Nxe5 {[%emt 0:00:26]} 10. dxe5 {[%emt 0:00:01]} d4 {[%emt 0:00:01]} 11. Qc2 {[%emt 0:00:01]} dxc3 {[%emt 0:00:03]} 12. exf6 {[%emt 0:00:01]} gxf6 {[%emt 0:00:13]} 13. Rd1 {[%emt 0:00:51]} Qxd1+ {[%emt 0:01:29]} 14. Kxd1 {[%emt 0:00:19]} O-O-O+ {[%emt 0:00:06]} 15. Kc1 {[%emt 0:00:01]} cxb2+ {[%emt 0:00:08]} 16. Qxb2 {[%emt 0:00:08]} fxg5 {[%emt 0:00:02]} 17. Be2 {[%emt 0:00:06]} Bc5 {[%emt 0:00:07]} 18. a4 {[%emt 0:00:13]} c6 {[%emt 0:00:01]} 19. Qc3 {[%emt 0:00:03]} Ba7 {[%emt 0:00:18]} 20. Qxc6+ {[%emt 0:00:09]} Kb8 {[%emt 0:00:01]} 21. Qxa6 {[%emt 0:00:03]} Rd7 {[%emt 0:00:16]} 22. Qxb5+ {[%emt 0:00:03]} Kc8 {[%emt 0:00:02]} 23. Qa6+ {[%emt 0:00:04]} Kb8 {[%emt 0:00:03]} 24. Qb5+ {[%emt 0:00:08]} Kc8 {[%emt 0:00:02]} 25. Bf3 {[%emt 0:00:05]} Rc7+ {[%emt 0:00:03]} 26. Kb2 {[%emt 0:00:02]} Bd7 {[%emt 0:00:02]} 27. Qa6+ {[%emt 0:00:02]} Kb8 {[%emt 0:00:02]} 28. Ka1 {[%emt 0:00:08]} Bf5 {[%emt 0:00:02]} 29. Qb5+ {[%emt 0:00:01]} 1-0

[Event "11th LCC Super Blitz 2019"]
[Site "London"]
[Date "2019.12.08"]
[Round "5.2"]
[White "Howell, David Wl"]
[Black "Rushbrooke, Remy"]
[Result "1-0"]
[ECO "A01"]
[WhiteElo "2650"]
[BlackElo "1877"]
[Annotator "ChessBase"]
[PlyCount "57"]
[EventDate "2019.12.08"]
[EventType "swiss"]
[EventCountry "ENG"]
[SourceTitle "playchess.com"]
[Source "ChessBase"]
[SourceQuality "1"]
[TimeControl "180+2"]

1. b3 {[%emt 0:00:01]} e5 {[%emt 0:00:03]} 2. Bb2 {[%emt 0:00:01]} d6 {[%emt 0:00:00]} 3. g3 {[%emt 0:00:03]} Nc6 {[%emt 0:00:02]} 4. Bg2 {[%emt 0:00:02]} g6 {[%emt 0:00:02]} 5. c4 {[%emt 0:00:08]} Bg7 {[%emt 0:00:02]} 6. e3 {[%emt 0:00:01]} f5 {[%emt 0:00:03]} 7. Ne2 {[%emt 0:00:02]} Nf6 {[%emt 0:00:10]} 8. Nbc3 {[%emt 0:00:01]} O-O {[%emt 0:00:06]} 9. d3 {[%emt 0:00:01]} Nh5 {[%emt 0:00:25]} 10. Qd2 {[%emt 0:00:07]} f4 {[%emt 0:00:27]} 11. gxf4 {[%emt 0:00:05]} exf4 {[%emt 0:00:02]} 12. Bd5+ {[%emt 0:00:14]} Kh8 {[%emt 0:00:04]} 13. O-O-O {[%emt 0:00:02]} Ne5 {[%emt 0:00:37]} 14. Kb1 {[%emt 0:00:34]} c6 {[%emt 0:00:46]} 15. Be4 {[%emt 0:00:02]} Ng4 {[%emt 0:00:16]} 16. Nxf4 {[%emt 0:00:09]} Nxf4 {[%emt 0:00:03]} 17. exf4 {[%emt 0:00:02]} Qb6 {[%emt 0:00:06]} 18. Rdf1 {[%emt 0:00:22]} Be6 {[%emt 0:00:09]} 19. h4 {[%emt 0:00:25]} Nf6 {[%emt 0:00:02]} 20. Ne2 {[%emt 0:00:18]} Nxe4 {[%emt 0:00:01]} 21. dxe4 {[%emt 0:00:01]} Qc7 {[%emt 0:00:06]} 22. Nd4 {[%emt 0:00:08]} Bg8 {[%emt 0:00:02]} 23. h5 {[%emt 0:00:01]} c5 {[%emt 0:00:04]} 24. Nb5 {[%emt 0:00:12]} Qe7 25. f3 {[%emt 0:00:03]} Bxb2 {[%emt 0:00:03]} 26. Qxb2+ {[%emt 0:00:02]} Qg7 {[%emt 0:00:03]} 27. hxg6 {[%emt 0:00:10]} Qxb2+ {[%emt 0:00:02]} 28. Kxb2 {[%emt 0:00:01]} Rxf4 {[%emt 0:00:02]} 29. Rfg1 {[%emt 0:00:11]} 1-0

[Event "11th LCC Super Blitz 2019"]
[Site "London"]
[Date "2019.12.08"]
[Round "5.2"]
[White "Willow, Jonah B"]
[Black "Pert, Nicholas"]
[Result "0-1"]
[ECO "B32"]
[WhiteElo "2355"]
[BlackElo "2560"]
[Annotator "ChessBase"]
[PlyCount "104"]
[EventDate "2019.12.08"]
[EventType "swiss"]
[EventCountry "ENG"]
[SourceTitle "playchess.com"]
[Source "ChessBase"]
[SourceQuality "1"]
[TimeControl "180+2"]

1. e4 {[%emt 0:00:00]} c5 {[%emt 0:00:00]} 2. Nf3 {[%emt 0:00:00]} Nc6 {[%emt 0:00:00]} 3. d4 {[%emt 0:00:02]} cxd4 4. Nxd4 {[%emt 0:00:01]} e5 {[%emt 0:00:00]} 5. Nb5 {[%emt 0:00:01]} d6 {[%emt 0:00:01]} 6. N1c3 {[%emt 0:00:02]} a6 {[%emt 0:00:01]} 7. Na3 {[%emt 0:00:01]} Be7 {[%emt 0:00:00]} 8. Nc4 {[%emt 0:00:02]} b5 {[%emt 0:00:01]} 9. Ne3 {[%emt 0:00:01]} Nf6 {[%emt 0:00:01]} 10. g3 {[%emt 0:00:03]} h5 {[%emt 0:00:01]} 11. Bg2 {[%emt 0:00:01]} h4 {[%emt 0:00:05]} 12. O-O {[%emt 0:00:01]} Rb8 {[%emt 0:00:02]} 13. Ncd5 {[%emt 0:00:10]} Nxd5 {[%emt 0:00:04]} 14. Nxd5 {[%emt 0:00:01]} Be6 {[%emt 0:00:08]} 15. c3 {[%emt 0:00:12]} Kf8 {[%emt 0:00:31]} 16. f4 {[%emt 0:00:33]} hxg3 {[%emt 0:00:05]} 17. hxg3 {[%emt 0:00:01]} exf4 {[%emt 0:00:10]} 18. gxf4 {[%emt 0:00:02]} Bxd5 {[%emt 0:00:11]} 19. exd5 {[%emt 0:00:14]} Qb6+ {[%emt 0:00:01]} 20. Rf2 {[%emt 0:00:12]} Bh4 {[%emt 0:00:01]} 21. Qf3 {[%emt 0:00:16]} Re8 {[%emt 0:00:33]} 22. Bd2 {[%emt 0:00:13]} Bxf2+ {[%emt 0:00:22]} 23. Qxf2 {[%emt 0:00:00]} Qxf2+ {[%emt 0:00:01]} 24. Kxf2 {[%emt 0:00:01]} Na5 {[%emt 0:00:06]} 25. b3 {[%emt 0:00:10]} Rh2 {[%emt 0:00:07]} 26. Rd1 {[%emt 0:00:27]} Nb7 {[%emt 0:00:06]} 27. Kg3 {[%emt 0:00:06]} Rh8 {[%emt 0:00:12]} 28. b4 {[%emt 0:00:09]} f6 {[%emt 0:00:03]} 29. Kf2 {[%emt 0:00:06]} Nd8 {[%emt 0:00:01]} 30. Be3 {[%emt 0:00:03]} Nf7 {[%emt 0:00:01]} 31. Bb6 {[%emt 0:00:12]} g5 {[%emt 0:00:03]} 32. fxg5 {[%emt 0:00:07]} Nxg5 {[%emt 0:00:02]} 33. Bc7 {[%emt 0:00:03]} Ke7 {[%emt 0:00:07]} 34. Rd4 {[%emt 0:00:13]} Kd7 {[%emt 0:00:02]} 35. Bb6 {[%emt 0:00:01]} Rb8 {[%emt 0:00:06]} 36. Ba5 {[%emt 0:00:03]} Nh3+ {[%emt 0:00:08]} 37. Kf3 {[%emt 0:00:17]} f5 {[%emt 0:00:12]} 38. c4 {[%emt 0:00:01]} Ng5+ {[%emt 0:00:08]} 39. Kf4 {[%emt 0:00:03]} Rh2 {[%emt 0:00:02]} 40. Kxg5 {[%emt 0:00:04]} Rxg2+ {[%emt 0:00:01]} 41. Kxf5 Rxa2 42. cxb5 {[%emt 0:00:06]} Rxb5 {[%emt 0:00:09]} 43. Rd1 {[%emt 0:00:02]} Re2 {[%emt 0:00:04]} 44. Rc1 {[%emt 0:00:02]} Re5+ {[%emt 0:00:02]} 45. Kf6 {[%emt 0:00:00]} Rb7 {[%emt 0:00:05]} 46. Rc6 {[%emt 0:00:02]} Rxd5 {[%emt 0:00:07]} 47. Rxa6 {[%emt 0:00:02]} Rd1 {[%emt 0:00:01]} 48. Ra8 {[%emt 0:00:01]} Rf1+ {[%emt 0:00:01]} 49. Kg5 {[%emt 0:00:01]} Kc6 {[%emt 0:00:01]} 50. Rc8+ {[%emt 0:00:05]} Kb5 {[%emt 0:00:01]} 51. Rd8 {[%emt 0:00:01]} Rg7+ {[%emt 0:00:02]} 52. Kh6 {[%emt 0:00:03]} Rg2 {[%emt 0:00:01]} 0-1

[Event "11th LCC Super Blitz 2019"]
[Site "London"]
[Date "2019.12.08"]
[Round "5.2"]
[White "Bukojemski, Adam"]
[Black "Royal, Shreyas"]
[Result "1-0"]
[ECO "C49"]
[WhiteElo "2219"]
[BlackElo "1941"]
[Annotator "NA"]
[PlyCount "165"]
[EventDate "2019.12.08"]
[EventType "swiss"]
[EventCountry "ENG"]
[SourceTitle "playchess.com"]
[Source "ChessBase"]
[SourceQuality "1"]
[TimeControl "180+2"]

1. e4 {[%emt 0:00:00]} e5 {[%emt 0:00:00]} 2. Nf3 {[%emt 0:00:00]} Nc6 {[%emt 0:00:00]} 3. Nc3 {[%emt 0:00:01]} Nf6 {[%emt 0:00:01]} 4. Bb5 Bb4 {[%emt 0:00:02]} 5. O-O {[%emt 0:00:03]} O-O {[%emt 0:00:04]} 6. d3 {[%emt 0:00:02]} Bxc3 {[%emt 0:00:03]} 7. bxc3 {[%emt 0:00:00]} d6 {[%emt 0:00:02]} 8. h3 {[%emt 0:00:03]} h6 {[%emt 0:00:07]} 9. Re1 {[%emt 0:00:06]} Ne7 {[%emt 0:00:09]} 10. d4 {[%emt 0:00:02]} Ng6 {[%emt 0:00:05]} 11. Bf1 {[%emt 0:00:02]} Re8 {[%emt 0:00:19]} 12. d5 Bd7 {[%emt 0:00:06]} 13. g3 {[%emt 0:00:01]} Qe7 {[%emt 0:00:02]} 14. Bg2 {[%emt 0:00:08]} Nh7 {[%emt 0:00:05]} 15. Kh2 {[%emt 0:00:10]} Rf8 {[%emt 0:00:05]} 16. Nd2 {[%emt 0:00:02]} f5 17. exf5 {[%emt 0:00:02]} Bxf5 {[%emt 0:00:02]} 18. Nc4 {[%emt 0:00:11]} Qf7 {[%emt 0:00:17]} 19. a4 {[%emt 0:00:13]} Bd7 {[%emt 0:00:08]} 20. Be3 {[%emt 0:00:03]} Ng5 {[%emt 0:00:10]} 21. Nd2 {[%emt 0:00:06]} Qf6 {[%emt 0:00:19]} 22. a5 {[%emt 0:00:08]} Ne7 {[%emt 0:00:10]} 23. Ne4 {[%emt 0:00:04]} Nxe4 {[%emt 0:00:01]} 24. Bxe4 Nf5 {[%emt 0:00:02]} 25. Bd2 {[%emt 0:00:10]} Ne7 {[%emt 0:00:13]} 26. Be3 {[%emt 0:00:15]} Nf5 {[%emt 0:00:02]} 27. Bc1 {[%emt 0:00:26]} Ne7 {[%emt 0:00:05]} 28. Re2 {[%emt 0:00:02]} Bb5 {[%emt 0:00:03]} 29. Rd2 c6 {[%emt 0:00:17]} 30. dxc6 {[%emt 0:00:07]} d5 {[%emt 0:00:18]} 31. cxb7 {[%emt 0:00:06]} Rab8 32. Bg2 {[%emt 0:00:03]} Rxb7 {[%emt 0:00:03]} 33. Ba3 Rd7 {[%emt 0:00:10]} 34. Bc5 {[%emt 0:00:06]} Bc4 {[%emt 0:00:03]} 35. Be3 {[%emt 0:00:07]} Nf5 {[%emt 0:00:05]} 36. Bc5 {[%emt 0:00:02]} Rc8 {[%emt 0:00:01]} 37. Bxd5+ {[%emt 0:00:06]} Bxd5 {[%emt 0:00:08]} 38. Rxd5 {[%emt 0:00:01]} Rdc7 {[%emt 0:00:00]} 39. Rd6 {[%emt 0:00:14]} Nxd6 {[%emt 0:00:03]} 40. Bxd6 {[%emt 0:00:02]} Qxf2+ {[%emt 0:00:02]} 41. Kh1 Rxc3 {[%emt 0:00:04]} 42. Qd5+ Kh8 {[%emt 0:00:03]} 43. Bxe5 {[%emt 0:00:03]} Qf3+ {[%emt 0:00:02]} 44. Qxf3 {[%emt 0:00:01]} Rxf3 45. c3 {[%emt 0:00:03]} Rf5 {[%emt 0:00:03]} 46. Bd4 {[%emt 0:00:01]} Rf3 {[%emt 0:00:03]} 47. Kg2 {[%emt 0:00:02]} Rf5 {[%emt 0:00:03]} 48. a6 Rb5 {[%emt 0:00:03]} 49. Re1 {[%emt 0:00:07]} Rc7 {[%emt 0:00:01]} 50. Re6 {[%emt 0:00:02]} Kg8 {[%emt 0:00:02]} 51. Kf3 {[%emt 0:00:02]} Kf7 {[%emt 0:00:00]} 52. Rd6 Ke7 {[%emt 0:00:02]} 53. Rg6 {[%emt 0:00:02]} Kf8 {[%emt 0:00:03]} 54. Ke4 {[%emt 0:00:05]} Rg5 {[%emt 0:00:04]} 55. Rxg5 {[%emt 0:00:07]} hxg5 {[%emt 0:00:02]} 56. Kf5 Rc6 {[%emt 0:00:01]} 57. Bxa7 {[%emt 0:00:02]} Rxa6 {[%emt 0:00:01]} 58. Bd4 Kf7 {[%emt 0:00:03]} 59. Kxg5 {[%emt 0:00:03]} Rc6 {[%emt 0:00:03]} 60. h4 Rc4 {[%emt 0:00:04]} 61. h5 {[%emt 0:00:02]} Rc6 62. g4 {[%emt 0:00:01]} Kf8 {[%emt 0:00:04]} 63. Kf5 Kf7 {[%emt 0:00:02]} 64. Ke5 {[%emt 0:00:02]} g6 {[%emt 0:00:02]} 65. Kd5 {[%emt 0:00:02]} Rc8 {[%emt 0:00:02]} 66. h6 {[%emt 0:00:02]} Kg8 {[%emt 0:00:04]} 67. g5 {[%emt 0:00:04]} Kh7 {[%emt 0:00:01]} 68. Bf6 {[%emt 0:00:01]} Rc7 {[%emt 0:00:06]} 69. c4 {[%emt 0:00:01]} Rb7 {[%emt 0:00:01]} 70. c5 {[%emt 0:00:01]} Ra7 {[%emt 0:00:01]} 71. c6 {[%emt 0:00:01]} Rc7 {[%emt 0:00:03]} 72. Kd6 {[%emt 0:00:01]} Ra7 73. c7 {[%emt 0:00:02]} Ra2 {[%emt 0:00:04]} 74. Bd4 {[%emt 0:00:10]} Ra6+ {[%emt 0:00:06]} 75. Ke7 {[%emt 0:00:05]} Rc6 {[%emt 0:00:02]} 76. Kd8 {[%emt 0:00:07]} Rd6+ {[%emt 0:00:02]} 77. Ke7 Rc6 {[%emt 0:00:05]} 78. Be5 {[%emt 0:00:03]} Rc1 {[%emt 0:00:03]} 79. Bd6 {[%emt 0:00:02]} Rc2 {[%emt 0:00:04]} 80. Kd8 {[%emt 0:00:02]} Rd2 {[%emt 0:00:01]} 81. c8=Q {[%emt 0:00:02]} Rxd6+ {[%emt 0:00:02]} 82. Ke7 {[%emt 0:00:05]} Rd8 {[%emt 0:00:03]} 83. Kxd8 {[%emt 0:00:02]} 1-0

[Event "11th LCC Super Blitz 2019"]
[Site "London"]
[Date "2019.12.08"]
[Round "5.3"]
[White "Rowson, Jonathan"]
[Black "Marusenko, Petr"]
[Result "1-0"]
[ECO "D12"]
[WhiteElo "2561"]
[BlackElo "2085"]
[Annotator "ChessBase"]
[PlyCount "55"]
[EventDate "2019.12.08"]
[EventType "swiss"]
[EventCountry "ENG"]
[SourceTitle "playchess.com"]
[Source "ChessBase"]
[SourceQuality "1"]
[TimeControl "180+2"]

1. d4 {[%emt 0:03:28]} d5 {[%emt 0:00:02]} 2. c4 {[%emt 0:00:02]} c6 3. Nf3 {[%emt 0:00:03]} Nf6 {[%emt 0:00:02]} 4. e3 Bf5 {[%emt 0:00:04]} 5. Nc3 {[%emt 0:00:02]} e6 6. Nh4 {[%emt 0:00:03]} Bg6 7. Nxg6 {[%emt 0:00:10]} hxg6 {[%emt 0:00:02]} 8. g3 {[%emt 0:00:01]} Nbd7 {[%emt 0:00:06]} 9. Bg2 {[%emt 0:00:08]} Bd6 {[%emt 0:00:06]} 10. Qe2 {[%emt 0:00:05]} Qe7 {[%emt 0:00:07]} 11. O-O {[%emt 0:00:12]} O-O {[%emt 0:00:04]} 12. b3 {[%emt 0:00:14]} dxc4 {[%emt 0:00:08]} 13. bxc4 {[%emt 0:00:02]} e5 {[%emt 0:00:01]} 14. Qc2 {[%emt 0:00:18]} exd4 {[%emt 0:00:03]} 15. exd4 Rfe8 {[%emt 0:00:10]} 16. Rb1 {[%emt 0:00:02]} Rab8 {[%emt 0:00:07]} 17. Bg5 {[%emt 0:00:04]} Qd8 {[%emt 0:00:28]} 18. Rfd1 Qa5 {[%emt 0:00:02]} 19. c5 {[%emt 0:00:09]} Bc7 {[%emt 0:00:16]} 20. Bd2 {[%emt 0:00:03]} Qa6 {[%emt 0:00:05]} 21. Bf1 {[%emt 0:00:01]} Qa5 {[%emt 0:00:38]} 22. Nb5 {[%emt 0:00:17]} cxb5 {[%emt 0:00:16]} 23. Bxa5 {[%emt 0:00:01]} Bxa5 {[%emt 0:00:02]} 24. Rxb5 {[%emt 0:00:01]} Bc7 {[%emt 0:00:04]} 25. Bc4 {[%emt 0:00:09]} Nf8 {[%emt 0:00:18]} 26. d5 {[%emt 0:00:02]} Be5 {[%emt 0:00:02]} 27. d6 {[%emt 0:00:02]} N8d7 {[%emt 0:00:05]} 28. Qxg6 {[%emt 0:00:06]} 1-0

[Event "11th LCC Super Blitz 2019"]
[Site "London"]
[Date "2019.12.08"]
[Round "5.3"]
[White "Cox, John J"]
[Black "Beinoras, Mindaugas"]
[Result "0-1"]
[ECO "A11"]
[WhiteElo "2346"]
[BlackElo "2401"]
[Annotator "NA"]
[PlyCount "63"]
[EventDate "2019.12.08"]
[EventType "swiss"]
[EventCountry "ENG"]
[SourceTitle "playchess.com"]
[Source "ChessBase"]
[SourceQuality "1"]
[TimeControl "180+2"]

1. c4 {[%emt 0:00:58]} c6 {[%emt 0:00:02]} 2. Nf3 {[%emt 0:00:02]} d5 {[%emt 0:00:01]} 3. g3 {[%emt 0:00:01]} dxc4 {[%emt 0:00:02]} 4. Bg2 {[%emt 0:00:02]} Nf6 {[%emt 0:00:03]} 5. O-O {[%emt 0:00:03]} Nbd7 {[%emt 0:00:00]} 6. a4 {[%emt 0:00:01]} a5 {[%emt 0:00:01]} 7. Na3 {[%emt 0:00:01]} Nb6 {[%emt 0:00:01]} 8. Qc2 {[%emt 0:00:02]} Qd5 {[%emt 0:00:01]} 9. Ne1 {[%emt 0:00:01]} Qd4 {[%emt 0:00:01]} 10. e3 {[%emt 0:00:02]} Qg4 {[%emt 0:00:09]} 11. h3 {[%emt 0:00:05]} Qf5 {[%emt 0:00:05]} 12. e4 {[%emt 0:00:05]} Qe6 {[%emt 0:00:14]} 13. f4 {[%emt 0:00:00]} g6 {[%emt 0:00:08]} 14. d3 {[%emt 0:00:07]} cxd3 {[%emt 0:00:03]} 15. Nxd3 {[%emt 0:00:01]} Bg7 {[%emt 0:00:01]} 16. Be3 {[%emt 0:00:09]} Nbd7 {[%emt 0:00:12]} 17. Rad1 {[%emt 0:00:02]} Nxe4 {[%emt 0:00:07]} 18. Rfe1 {[%emt 0:00:14]} O-O {[%emt 0:00:12]} 19. Nc5 {[%emt 0:00:17]} Nexc5 {[%emt 0:00:33]} 20. Bxc5 {[%emt 0:00:01]} Qf5 {[%emt 0:00:04]} 21. Qxf5 {[%emt 0:00:04]} gxf5 {[%emt 0:00:01]} 22. Bxe7 {[%emt 0:00:01]} Re8 {[%emt 0:00:01]} 23. Nc4 {[%emt 0:00:02]} Bf6 {[%emt 0:00:08]} 24. Nd6 {[%emt 0:00:39]} Rxe7 {[%emt 0:00:10]} 25. Rxe7 {[%emt 0:00:01]} Bxe7 {[%emt 0:00:01]} 26. Nxc8 {[%emt 0:00:01]} Bc5+ {[%emt 0:00:01]} 27. Kh2 {[%emt 0:00:01]} Nf6 {[%emt 0:00:08]} 28. Rd8+ {[%emt 0:00:13]} Kg7 {[%emt 0:00:01]} 29. Bf1 {[%emt 0:00:22]} Bb6 {[%emt 0:00:10]} 30. Nxb6 {[%emt 0:00:11]} Rxd8 {[%emt 0:00:01]} 31. Bc4 {[%emt 0:00:01]} Rd2+ {[%emt 0:00:02]} 32. Kg1 {[%emt 0:00:02]} 0-1

[Event "11th LCC Super Blitz 2019"]
[Site "London"]
[Date "2019.12.08"]
[Round "5.3"]
[White "Young, Daniel J"]
[Black "Mortazavi, Ali"]
[Result "0-1"]
[ECO "B14"]
[WhiteElo "1947"]
[BlackElo "2333"]
[Annotator "NA"]
[PlyCount "70"]
[EventDate "2019.12.08"]
[EventType "swiss"]
[EventCountry "ENG"]
[SourceTitle "playchess.com"]
[Source "ChessBase"]
[SourceQuality "1"]
[TimeControl "180+2"]

1. e4 {[%emt 0:00:00]} c6 {[%emt 0:00:00]} 2. d4 {[%emt 0:00:00]} d5 {[%emt 0:00:00]} 3. exd5 {[%emt 0:00:01]} cxd5 {[%emt 0:00:01]} 4. c4 {[%emt 0:00:01]} Nf6 {[%emt 0:00:01]} 5. Nc3 {[%emt 0:00:01]} g6 {[%emt 0:00:00]} 6. Qb3 {[%emt 0:00:02]} Bg7 {[%emt 0:00:01]} 7. cxd5 {[%emt 0:00:01]} O-O {[%emt 0:00:01]} 8. Be2 {[%emt 0:00:02]} Nbd7 {[%emt 0:00:03]} 9. Bf3 {[%emt 0:00:01]} Nb6 {[%emt 0:00:01]} 10. Nge2 {[%emt 0:00:04]} a5 {[%emt 0:00:01]} 11. a4 {[%emt 0:00:15]} Bf5 {[%emt 0:00:01]} 12. O-O {[%emt 0:00:04]} Rc8 {[%emt 0:00:06]} 13. Bf4 {[%emt 0:00:04]} h6 {[%emt 0:00:03]} 14. h3 {[%emt 0:00:12]} g5 {[%emt 0:00:11]} 15. Bh2 {[%emt 0:00:08]} Bg6 {[%emt 0:00:08]} 16. Rad1 {[%emt 0:00:12]} h5 {[%emt 0:00:06]} 17. d6 {[%emt 0:00:14]} exd6 {[%emt 0:00:09]} 18. Bxb7 {[%emt 0:00:01]} Rb8 {[%emt 0:00:03]} 19. Bc6 {[%emt 0:00:13]} Nbd5 {[%emt 0:00:07]} 20. Qa3 {[%emt 0:00:13]} Nb4 {[%emt 0:00:01]} 21. d5 {[%emt 0:00:08]} Bd3 {[%emt 0:01:02]} 22. Rxd3 {[%emt 0:00:23]} Nxd3 {[%emt 0:00:01]} 23. Bxd6 {[%emt 0:00:01]} Rxb2 {[%emt 0:00:07]} 24. Nb5 {[%emt 0:00:27]} Rxe2 {[%emt 0:00:32]} 25. Qxd3 {[%emt 0:00:01]} Ra2 {[%emt 0:00:07]} 26. Bxf8 {[%emt 0:00:09]} Bxf8 {[%emt 0:00:05]} 27. Qd4 {[%emt 0:00:22]} Bd6 {[%emt 0:00:09]} 28. Nc3 {[%emt 0:00:13]} Rc2 {[%emt 0:00:09]} 29. Ne4 {[%emt 0:00:12]} Nxe4 {[%emt 0:00:02]} 30. Qxe4 {[%emt 0:00:00]} Rd2 {[%emt 0:00:08]} 31. Re1 {[%emt 0:00:07]} Qf6 {[%emt 0:00:01]} 32. Qe8+ {[%emt 0:00:03]} Kg7 {[%emt 0:00:01]} 33. Qe3 {[%emt 0:00:07]} Bf4 {[%emt 0:00:10]} 34. Qf3 {[%emt 0:00:00]} h4 {[%emt 0:00:05]} 35. Re8 {[%emt 0:00:03]} Qa1+ {[%emt 0:00:03] Re5} 0-1